bitfinex/quotes_SOLUSD_20251223
["timestamp","ask_amount","ask_price","bid_price","bid_amount"]
[1766514412298,8.08417895,123.7,123.66,4.76555797]
[1766514412530,4.76555797,123.69,123.65,4.76555797]
[1766514412823,0.72,123.68,123.65,4.76555797]
[1766514413019,8.80570815,123.68,123.64,4.76555797]
[1766514413316,0.72,123.67,123.64,4.76555797]
[1766514413919,0.72,123.67,123.63,4.76555797]
[1766514414304,8.80604983,123.67,123.62,8.56887334]
[1766514414505,8.80604983,123.67,123.64,4.76555797]
[1766514414824,0.72,123.67,123.64,4.76555797]
[1766514415017,8.80623428,123.67,123.64,4.76555797]
[1766514415725,8.80623428,123.67,123.63,0.48]
[1766514415726,0.72,123.69,123.66,4.76555797]
[1766514416320,8.80534899,123.69,123.66,4.76555797]
[1766514417037,8.80534899,123.69,123.65,0.48]
[1766514417038,8.80534899,123.69,123.67,4.76555797]
[1766514417532,8.80534899,123.69,123.66,4.76555797]
[1766514418228,8.80534899,123.69,123.67,4.76555797]
[1766514418719,29.01716886,123.69,123.66,4.76555797]
[1766514419408,29.01716886,123.69,123.64,0.48]
[1766514419610,29.01716886,123.69,123.66,4.76555797]
[1766514419813,0.72,123.66,123.6,8.09040779]
[1766514420035,0.72,123.64,123.6,4.76555797]
[1766514420205,0.72,123.62,123.57,0.48]
[1766514420406,0.72,123.62,123.55,14.76]
[1766514420407,4.76555797,123.61,123.56,4.76555797]
[1766514420718,5.48555797,123.6,123.56,4.76555797]
[1766514421432,0.72,123.6,123.55,23.33384553]
[1766514421639,0.72,123.6,123.56,4.76555797]
[1766514422718,8.81078694,123.6,123.56,4.76555797]
[1766514422914,5.48555797,123.59,123.55,14.76]
[1766514423131,0.72,123.57,123.51,8.77624055]
[1766514423321,0.72,123.57,123.53,4.76555797]
[1766514423631,5.48555797,123.57,123.52,5.24555797]
[1766514423827,5.48555797,123.57,123.51,8.29624055]
[1766514423828,5.48555797,123.56,123.51,4.96555797]
[1766514424207,5.48555797,123.55,123.51,4.96555797]
[1766514424408,5.48555797,123.55,123.51,5.44555797]
[1766514424409,0.72,123.55,123.51,5.44555797]
[1766514424639,8.81417939,123.55,123.51,5.44555797]
[1766514425109,8.81417939,123.55,123.51,0.68]
[1766514425311,13.57973736,123.55,123.51,0.2]
[1766514425539,33.09446014,123.55,123.51,0.2]
[1766514425709,5.48555797,123.54,123.51,0.2]
[1766514426227,0.72,123.54,123.51,0.2]
[1766514426739,8.81472942,123.54,123.51,0.2]
[1766514427456,5.46555797,123.53,123.51,0.2]
[1766514427858,5.46555797,123.53,123.5,0.2]
[1766514428941,13.5613397,123.53,123.5,0.2]
[1766514429343,8.79578173,123.53,123.5,0.2]
[1766514430040,8.09454427,123.54,123.5,5.44555797]
[1766514430244,8.09454427,123.54,123.51,0.48]
[1766514430449,8.79454427,123.54,123.5,4.96555797]
[1766514431557,8.79454427,123.54,123.5,0.2]
[1766514431727,12.86010224,123.54,123.5,0.2]
[1766514431933,5.46555797,123.53,123.5,0.2]
[1766514432261,13.56141289,123.52,123.5,0.2]
[1766514433064,0.7,123.51,123.48,0.2]
[1766514433235,13.56141289,123.52,123.48,5.44555797]
[1766514433430,13.56141289,123.52,123.48,0.68]
[1766514434637,4.76555797,123.51,123.48,0.2]
[1766514434834,5.46555797,123.5,123.48,0.2]
[1766514435352,0.7,123.49,123.45,4.96555797]
[1766514435528,0.7,123.49,123.46,4.76555797]
[1766514436654,8.79661175,123.51,123.47,4.76555797]
[1766514437054,0.7,123.5,123.47,4.76555797]
[1766514437359,8.79661175,123.51,123.47,4.76555797]
[1766514439135,12.86216972,123.51,123.47,4.76555797]
[1766514439341,0.7,123.5,123.47,4.76555797]
[1766514441356,8.0960726,123.52,123.49,4.76555797]
[1766514441536,8.79681688,123.51,123.47,4.76555797]
[1766514441743,0.7,123.5,123.47,4.76555797]
[1766514443967,0.7,123.5,123.47,1.911014]
[1766514444854,8.79725029,123.5,123.46,1.951014]
[1766514445169,0.7,123.49,123.46,1.911014]
[1766514446070,8.79783981,123.49,123.45,2.151014]
[1766514446274,10.70885381,123.49,123.45,2.111014]
[1766514446461,0.7,123.49,123.46,1.911014]
[1766514446861,8.79804311,123.49,123.46,1.911014]
[1766514447073,8.79804311,123.49,123.45,2.151014]
[1766514447252,0.7,123.48,123.45,0.2]
[1766514447455,0.7,123.47,123.45,0.2]
[1766514447955,8.79913719,123.47,123.45,0.2]
[1766514448950,8.79913719,123.47,123.45,1e-08]
[1766514449151,0.7,123.46,123.42,1.911014]
[1766514449351,0.7,123.43,123.4,1.911014]
[1766514450467,8.80176332,123.43,123.4,1.911014]
[1766514450663,8.10132264,123.44,123.4,1.911014]
[1766514450980,8.80132264,123.44,123.4,1.911014]
[1766514451177,0.7,123.43,123.39,0.24]
[1766514451480,0.7,123.43,123.4,1.911014]
[1766514451677,1.911014,123.45,123.41,1.911014]
[1766514451678,8.10070911,123.45,123.41,1.911014]
[1766514451849,0.7,123.45,123.42,1.911014]
[1766514452049,0.7,123.45,123.43,4.781443]
[1766514452259,14.78,123.49,123.44,4.781443]
[1766514452475,0.7,123.48,123.45,4.781443]
[1766514453278,0.7,123.48,123.46,4.781443]
[1766514454177,8.80782168,123.49,123.46,4.781443]
[1766514454383,8.09746558,123.5,123.48,4.781443]
[1766514454780,8.80746558,123.5,123.48,4.781443]
[1766514455076,8.80746558,123.5,123.47,4.781443]
[1766514455981,8.80746558,123.5,123.47,7.76362407]
[1766514457858,8.09746558,123.5,123.45,0.04]
[1766514458086,0.72,123.49,123.45,0.04]
[1766514458660,0.72,123.51,123.47,7.76362407]
[1766514458863,8.81666125,123.51,123.48,7.76362407]
[1766514459059,0.72,123.51,123.49,7.76362407]
[1766514459283,0.72,123.51,123.47,0.04]
[1766514459284,8.81536934,123.53,123.5,7.76362407]
[1766514459975,0.72,123.5,123.42,0.04]
[1766514460167,0.72,123.48,123.43,8.1413484]
[1766514460361,0.72,123.48,123.46,7.76362407]
[1766514460780,0.72,123.48,123.44,8.14104913]
[1766514460976,0.72,123.48,123.46,7.76362407]
[1766514462161,8.81847846,123.48,123.45,7.76362407]
[1766514465769,8.09803918,123.49,123.46,7.76362407]
[1766514466297,8.81803918,123.49,123.46,7.76362407]
[1766514467287,10.43767296,123.51,123.48,7.76362407]
[1766514467488,0.72,123.5,123.47,7.76362407]
[1766514467687,7.76362407,123.49,123.44,14.78]
[1766514467887,0.72,123.48,123.45,7.76362407]
[1766514468189,0.72,123.47,123.44,7.76362407]
[1766514470095,8.09768934,123.5,123.46,7.76362407]
[1766514470395,0.72,123.49,123.46,7.76362407]
[1766514470599,0.72,123.49,123.44,8.14101771]
[1766514470791,0.72,123.49,123.45,7.76362407]
[1766514471296,8.81818132,123.49,123.44,0.04]
[1766514471479,8.81818132,123.49,123.45,7.76362407]
[1766514471680,8.81818132,123.49,123.44,0.04]
[1766514471998,8.81818132,123.49,123.45,7.76362407]
[1766514473103,0.72,123.48,123.45,7.76362407]
[1766514474003,0.72,123.48,123.44,8.14107508]
[1766514474191,0.72,123.48,123.45,2.98672332]
[1766514477810,0.72,123.48,123.45,3.02672332]
[1766514478388,0.72,123.48,123.45,2.98672332]
[1766514480283,8.81857933,123.48,123.45,2.98672332]
[1766514481512,20.24074088,123.52,123.45,8.10030305]
[1766514481721,20.24074088,123.52,123.48,2.98672332]
[1766514481722,0.72,123.51,123.48,2.98672332]
[1766514483009,8.81701205,123.51,123.48,2.98672332]
[1766514489900,29.05828806,123.51,123.48,2.98672332]
[1766514490098,28.33828806,123.51,123.48,2.98672332]
[1766514490304,29.03828806,123.51,123.48,2.98672332]
[1766514492515,29.03828806,123.51,123.47,3.02672332]
[1766514498720,0.7,123.5,123.47,3.02672332]
[1766514498915,31.32501138,123.51,123.47,3.02672332]
[1766514499118,3.68672332,123.49,123.46,14.78]
[1766514499410,0.7,123.48,123.45,3.02672332]
[1766514499618,0.7,123.48,123.45,0.04]
[1766514499794,3.68672332,123.48,123.44,3.02672332]
[1766514499993,0.7,123.48,123.44,3.02672332]
[1766514500316,0.7,123.48,123.45,2.98672332]
[1766514500626,8.79892515,123.48,123.45,3.02672332]
[1766514504016,0.7,123.51,123.46,2.98672332]
[1766514504224,3.68672332,123.5,123.46,3.02672332]
[1766514504513,0.7,123.49,123.46,3.02672332]
[1766514507017,8.79688272,123.51,123.48,2.98672332]
[1766514507722,29.03815873,123.51,123.47,0.04]
[1766514507907,0.7,123.49,123.45,3.02672332]
[1766514508110,0.7,123.48,123.44,3.02672332]
[1766514508307,0.7,123.48,123.44,2.98672332]
[1766514508620,0.7,123.48,123.45,0.04]
[1766514509026,8.79865567,123.48,123.45,0.04]
[1766514509223,20.24127601,123.51,123.45,3.02672332]
[1766514509425,8.79756654,123.5,123.47,3.02672332]
[1766514509631,8.79756654,123.5,123.47,2.98672332]
[1766514510303,29.04048151,123.5,123.46,0.04]
[1766514510521,0.7,123.49,123.46,2.98672332]
[1766514513930,0.7,123.49,123.46,3.02672332]
[1766514514431,8.79783111,123.49,123.46,3.02672332]
[1766514516036,8.79783111,123.49,123.46,1.95118451]
[1766514516708,0.7,123.49,123.46,1.95118451]
[1766514516910,8.09745202,123.5,123.47,1.91118451]
[1766514517133,8.76745202,123.5,123.47,1.95118451]
[1766514517632,8.76745202,123.5,123.47,1.91118451]
[1766514518015,0.67,123.5,123.47,1.91118451]
[1766514519737,0.67,123.5,123.46,10.05080245]
[1766514520235,0.67,123.49,123.45,8.10017854]
[1766514520453,0.67,123.49,123.45,10.05136305]
[1766514520958,0.67,123.49,123.45,1.95118451]
[1766514521110,0.67,123.49,123.45,10.05159312]
[1766514521307,0.67,123.49,123.43,14.78]
[1766514521308,0.67,123.48,123.44,1.95118451]
[1766514521739,0.67,123.49,123.45,1.91118451]
[1766514521930,0.67,123.49,123.46,1.95118451]
[1766514525232,0.67,123.49,123.47,1.91118451]
[1766514525437,0.67,123.5,123.47,1.91118451]
[1766514525918,0.67,123.5,123.46,1.91118451]
[1766514526239,0.67,123.5,123.47,0.04]
[1766514528536,0.67,123.5,123.47,1.95118451]
[1766514530243,8.7672032,123.5,123.46,10.0508499]
[1766514531532,0.67,123.5,123.46,10.0508499]
[1766514532443,0.67,123.5,123.47,1.95118451]
[1766514532651,0.67,123.5,123.48,1.91118451]
[1766514533755,0.67,123.5,123.47,1.95118451]
[1766514534252,0.67,123.5,123.47,1.91118451]
[1766514535031,0.67,123.5,123.47,1.95118451]
[1766514537646,0.67,123.5,123.47,10.05026174]
[1766514540251,1e-08,123.52,123.49,1.95118451]
[1766514540461,4.22843012,123.58,123.52,0.04]
[1766514540630,8.09126952,123.59,123.53,14.78]
[1766514540834,0.67,123.59,123.55,0.04]
[1766514541038,0.67,123.59,123.56,1.91118451]
[1766514541236,1.91118451,123.59,123.54,0.04]
[1766514541439,0.67,123.57,123.53,1.95118451]
[1766514541861,0.67,123.57,123.54,1.91118451]
[1766514542850,8.76310628,123.57,123.54,1.91118451]
[1766514543194,0.67,123.56,123.52,1.91118451]
[1766514543454,0.67,123.54,123.51,14.78]
[1766514547041,0.67,123.54,123.5,20.48582112]
[1766514547236,0.67,123.54,123.51,10.00759859]
[1766514549070,0.67,123.54,123.5,12.34885747]
[1766514549240,0.71,123.53,123.5,12.34885747]
[1766514549447,0.71,123.53,123.5,20.44593699]
[1766514549765,8.09458442,123.54,123.48,8.13808912]
[1766514549766,0.71,123.51,123.48,8.13808912]
[1766514549954,0.71,123.51,123.47,24.79012672]
[1766514550152,0.71,123.51,123.48,8.09845554]
[1766514550351,0.71,123.51,123.48,10.00964005]
[1766514552674,8.80667115,123.51,123.48,1.91118451]
[1766514552973,0.71,123.51,123.47,14.82]
[1766514553186,0.71,123.51,123.48,1.91118451]
[1766514554272,0.71,123.51,123.48,8.09843777]
[1766514554474,0.71,123.51,123.48,10.00962228]
[1766514554683,0.71,123.53,123.49,1.95118451]
[1766514554864,0.71,123.53,123.49,1.91118451]
[1766514555265,8.09532435,123.53,123.49,1.91118451]
[1766514555565,0.71,123.52,123.49,1.91118451]
[1766514555964,0.71,123.52,123.47,8.09874123]
[1766514555965,1.91118451,123.52,123.47,8.09874123]
[1766514556162,0.71,123.5,123.47,8.09874123]
[1766514556364,0.71,123.53,123.49,1.91118451]
[1766514556556,0.71,123.52,123.49,1.91118451]
[1766514561057,0.71,123.52,123.5,1.91118451]
[1766514561583,8.80483279,123.54,123.51,1.91118451]
[1766514561793,0.71,123.53,123.51,1.91118451]
[1766514565078,0.71,123.53,123.5,8.13690791]
[1766514565384,0.71,123.53,123.51,1.91118451]
[1766514566681,0.71,123.53,123.5,1.91118451]
[1766514567060,0.71,123.53,123.5,1.95118451]
[1766514567459,0.71,123.53,123.5,1.91118451]
[1766514567855,8.09524949,123.53,123.5,1.91118451]
[1766514568081,0.71,123.52,123.46,31.49606816]
[1766514568274,0.71,123.51,123.48,1.91118451]
[1766514569382,0.71,123.5,123.47,1.91118451]
[1766514570085,0.71,123.5,123.46,33.35728262]
[1766514570271,0.71,123.5,123.47,1.91118451]
[1766514574667,0.71,123.5,123.47,10.05027158]
[1766514575265,0.71,123.5,123.47,10.01027158]
[1766514575991,0.71,123.5,123.47,11.0846613]
[1766514576494,0.71,123.5,123.47,8.09908707]
[1766514576661,0.71,123.5,123.47,11.0846613]
[1766514577772,0.71,123.5,123.47,11.1246613]
[1766514579305,0.7,123.52,123.48,3.02557423]
[1766514580390,0.7,123.53,123.5,2.98557423]
[1766514581803,0.7,123.53,123.5,11.08273236]
[1766514583807,0.7,123.54,123.51,3.02557423]
[1766514584005,0.7,123.55,123.52,2.98557423]
[1766514584186,0.7,123.55,123.51,17.80557423]
[1766514584711,0.7,123.55,123.52,2.98557423]
[1766514584910,0.7,123.55,123.51,25.90186468]
[1766514585100,0.7,123.55,123.51,22.87629045]
[1766514585289,0.7,123.55,123.51,25.86186468]
[1766514587008,0.7,123.54,123.51,17.76557423]
[1766514587316,0.7,123.54,123.51,14.78]
[1766514587817,0.7,123.54,123.51,17.76557423]
[1766514588012,0.7,123.54,123.51,25.86196855]
[1766514590094,0.7,123.54,123.51,25.90196855]
[1766514592819,0.7,123.53,123.51,14.78]
[1766514593492,0.7,123.53,123.51,22.87643277]
[1766514594135,0.7,123.53,123.51,25.862007]
[1766514595204,0.7,123.53,123.51,22.87643277]
[1766514595415,0.7,123.53,123.51,17.76557423]
[1766514596295,0.7,123.53,123.51,25.86206421]
[1766514597021,0.7,123.54,123.51,25.86206421]
[1766514598690,0.7,123.54,123.51,14.78]
[1766514598904,0.7,123.54,123.51,17.76557423]
[1766514599311,0.7,123.54,123.51,25.86202822]
[1766514604129,8.79487954,123.54,123.51,17.76557423]
[1766514604309,8.79487954,123.54,123.51,14.78]
[1766514604629,0.7,123.54,123.51,14.78]
[1766514605625,0.7,123.54,123.51,25.8619813]
[1766514606794,8.28958184,123.62,123.53,2.98557423]
[1766514607010,0.2,123.62,123.58,2.98557423]
[1766514607210,4.4249979,123.62,123.61,2.98557423]
[1766514607617,0.2,123.62,123.61,2.98557423]
[1766514607820,0.2,123.62,123.6,2.98557423]
[1766514608029,0.68,123.61,123.59,14.78]
[1766514608236,0.88,123.62,123.59,17.76557423]
[1766514609114,0.2,123.62,123.6,2.98557423]
[1766514609342,0.2,123.62,123.59,17.76557423]
[1766514610027,0.2,123.62,123.6,2.98557423]
[1766514610411,0.2,123.62,123.59,17.76557423]
[1766514610831,0.88,123.62,123.59,14.78]
[1766514611123,0.88,123.62,123.59,17.76557423]
[1766514611332,0.88,123.62,123.57,11.07790484]
[1766514611333,0.68,123.61,123.57,11.07790484]
[1766514611539,8.28942878,123.62,123.58,2.98557423]
[1766514611743,0.68,123.61,123.57,2.98557423]
[1766514612634,0.68,123.6,123.57,2.98557423]
[1766514613266,0.68,123.59,123.56,17.76557423]
[1766514613443,0.68,123.59,123.56,14.78]
[1766514614021,0.68,123.57,123.53,11.08073174]
[1766514614234,0.68,123.55,123.52,14.78]
[1766514617115,8.77396691,123.55,123.52,14.78]
[1766514617443,0.68,123.54,123.5,36.30030461]
[1766514618268,0.68,123.54,123.5,33.31473038]
[1766514618546,0.68,123.54,123.5,36.30030461]
[1766514621841,0.68,123.54,123.5,33.31473038]
[1766514622020,0.68,123.54,123.5,36.30030461]
[1766514624158,40.46084277,123.59,123.51,11.08177952]
[1766514624360,0.68,123.58,123.52,14.78]
[1766514624543,0.68,123.57,123.53,2.98557423]
[1766514624847,0.68,123.57,123.52,14.78]
[1766514625032,0.68,123.57,123.53,11.08075459]
[1766514625648,0.68,123.57,123.54,2.98557423]
[1766514630953,11.75816851,123.57,123.52,22.87562332]
[1766514631459,11.75816851,123.57,123.52,25.86119755]
[1766514631757,0.68,123.56,123.53,11.08074261]
[1766514632953,0.68,123.56,123.53,8.09516838]
[1766514633171,0.7,123.53,123.45,2.98557423]
[1766514633331,0.7,123.52,123.48,31.32988697]
[1766514633655,21.77055177,123.58,123.51,2.98557423]
[1766514633866,0.7,123.58,123.55,2.98557423]
[1766514634352,0.7,123.58,123.54,2.98557423]
[1766514634555,8.79194402,123.58,123.54,2.98557423]
[1766514634759,0.7,123.57,123.53,8.09489193]
[1766514634955,0.7,123.57,123.54,2.98557423]
[1766514635341,0.7,123.57,123.53,2.98557423]
[1766514635545,0.7,123.56,123.52,36.29884991]
[1766514635765,0.7,123.56,123.52,28.20324719]
[1766514635937,2.98557423,123.56,123.5,8.09690956]
[1766514636142,0.7,123.54,123.5,28.20324719]
[1766514636650,0.7,123.54,123.51,2.98557423]
[1766514636966,0.72,123.56,123.5,37.1098952]
[1766514637163,0.72,123.56,123.54,2.98557423]
[1766514637344,0.72,123.56,123.53,2.98557423]
[1766514637963,0.72,123.55,123.52,16.6890795]
[1766514638165,0.72,123.55,123.5,10.43767296]
[1766514638338,0.72,123.53,123.49,16.6890795]
[1766514639339,0.72,123.53,123.5,1.9090795]
[1766514640560,8.81530076,123.53,123.5,1.9090795]
[1766514642480,8.09530076,123.53,123.49,22.87781091]
[1766514642762,0.72,123.52,123.49,16.6890795]
[1766514642941,0.72,123.52,123.49,14.78]
[1766514643256,0.72,123.52,123.49,16.6890795]
[1766514643463,0.72,123.52,123.5,1.9090795]
[1766514645760,0.72,123.52,123.49,14.78]
[1766514645942,0.72,123.52,123.5,1.9090795]
[1766514649548,30.23835553,123.55,123.51,1.9090795]
[1766514649859,0.72,123.54,123.51,1.9090795]
[1766514650050,0.72,123.54,123.5,1.9090795]
[1766514651172,0.72,123.53,123.49,22.87778951]
[1766514651471,0.72,123.53,123.5,1.9090795]
[1766514652472,8.81524645,123.53,123.5,1.9090795]
[1766514655157,8.81524645,123.53,123.49,1.9090795]
[1766514655352,1.9090795,123.5,123.43,8.10128439]
[1766514655657,0.72,123.49,123.45,1.9090795]
[1766514655858,0.72,123.49,123.46,1.9090795]
[1766514656857,0.72,123.49,123.44,18.5386838]
[1766514657176,0.72,123.49,123.46,1.9090795]
[1766514657763,8.81784585,123.49,123.45,1.9090795]
[1766514658392,8.09569978,123.53,123.46,8.09934425]
[1766514658673,0.72,123.53,123.49,1.9090795]
[1766514660887,0.72,123.55,123.51,1.9090795]
[1766514661060,20.23181888,123.57,123.53,1.9090795]
[1766514661061,0.72,123.57,123.53,1.9090795]
[1766514661252,2.6290795,123.57,123.52,1.9090795]
[1766514661458,0.72,123.56,123.52,1.9090795]
[1766514661669,0.72,123.56,123.51,8.09636067]
[1766514661863,0.72,123.56,123.5,11.24738955]
[1766514662182,0.72,123.53,123.5,10.43767296]
[1766514662555,0.72,123.54,123.5,10.43767296]
[1766514662986,8.81472601,123.54,123.5,10.43767296]
[1766514663181,8.09472601,123.54,123.5,12.34675246]
[1766514663363,8.81472601,123.54,123.5,12.34675246]
[1766514663775,1.9090795,123.53,123.49,14.78]
[1766514663977,0.72,123.52,123.49,10.43767296]
[1766514664182,8.09472601,123.54,123.48,10.43767296]
[1766514664183,0.72,123.5,123.48,10.43767296]
[1766514664461,43.1110867,123.54,123.44,14.78]
[1766514664462,0.72,123.53,123.44,14.78]
[1766514664679,43.1110867,123.54,123.44,24.79001479]
[1766514664680,0.72,123.49,123.44,24.79001479]
[1766514664990,8.81793106,123.49,123.44,24.79001479]
[1766514665282,10.72701056,123.49,123.44,10.01001479]
[1766514665590,10.72701056,123.49,123.43,10.43767296]
[1766514665591,0.72,123.48,123.45,10.43767296]
[1766514666675,2.6290795,123.48,123.45,10.43767296]
[1766514666872,1.9090795,123.48,123.45,10.43767296]
[1766514667061,0.69,123.47,123.43,8.10167711]
[1766514667476,0.69,123.47,123.42,20.4491079]
[1766514667790,2.5990795,123.47,123.42,20.4491079]
[1766514668667,0.69,123.47,123.42,20.4491079]
[1766514669991,8.78913669,123.47,123.42,20.4491079]
[1766514671181,10.69821619,123.47,123.42,20.4491079]
[1766514671792,10.69821619,123.47,123.42,18.5400284]
[1766514671995,10.69821619,123.47,123.42,20.4491079]
[1766514673271,0.69,123.46,123.39,0.2]
[1766514673578,0.69,123.43,123.39,0.2]
[1766514673897,0.69,123.44,123.41,1.9090795]
[1766514674074,0.69,123.44,123.4,8.10351016]
[1766514674270,0.69,123.44,123.39,10.21303818]
[1766514674497,2.5990795,123.44,123.39,10.21303818]
[1766514674674,0.69,123.43,123.39,10.21303818]
[1766514674875,14.78,123.46,123.39,10.21303818]
[1766514674876,2.5990795,123.42,123.39,0.2]
[1766514675297,0.69,123.42,123.39,0.2]
[1766514676198,0.69,123.43,123.39,10.21343768]
[1766514679677,8.79193159,123.43,123.39,2.1090795]
[1766514680098,8.10193159,123.43,123.39,2.1090795]
[1766514680401,0.69,123.42,123.39,0.2]
[1766514684021,0.69,123.42,123.39,2.1090795]
[1766514684180,0.69,123.42,123.39,10.21335498]
[1766514686607,0.69,123.42,123.4,1.9090795]
[1766514687231,0.69,123.46,123.41,1.9090795]
[1766514687386,0.69,123.47,123.44,1.9090795]
[1766514688082,0.69,123.47,123.43,12.34675246]
[1766514688481,8.78929222,123.47,123.43,12.34675246]
[1766514688704,0.69,123.46,123.43,12.34675246]
[1766514689383,0.69,123.46,123.43,10.01080504]
[1766514689983,10.43767296,123.5,123.45,1.9090795]
[1766514689984,0.69,123.49,123.45,1.9090795]
[1766514690184,0.69,123.49,123.46,1.9090795]
[1766514690591,0.69,123.49,123.46,10.00878871]
[1766514692488,0.69,123.49,123.46,8.09970921]
[1766514692803,0.69,123.49,123.46,10.00878871]
[1766514694110,0.69,123.49,123.45,8.10044552]
[1766514694314,0.69,123.49,123.45,10.00952502]
[1766514695006,0.72,123.48,123.45,10.00952502]
[1766514695707,0.72,123.48,123.45,8.10044552]
[1766514695929,0.72,123.48,123.45,10.00952502]
[1766514698114,0.72,123.48,123.45,11.08693619]
[1766514701490,0.72,123.5,123.47,2.98649067]
[1766514703913,0.72,123.5,123.47,11.08550297]
[1766514704100,15.5,123.52,123.47,11.08550297]
[1766514704302,0.72,123.52,123.48,2.98649067]
[1766514705323,0.72,123.51,123.47,8.0990123]
[1766514705515,0.72,123.51,123.47,11.08550297]
[1766514707901,0.72,123.51,123.48,2.98649067]
[1766514710720,8.09667488,123.51,123.46,11.08603061]
[1766514710898,0.72,123.5,123.46,11.08603061]
[1766514711217,0.72,123.5,123.46,8.09953994]
[1766514711527,0.72,123.5,123.46,11.08603061]
[1766514711821,0.72,123.5,123.47,8.0990591]
[1766514712193,30.67516669,123.54,123.48,2.98649067]
[1766514712401,0.72,123.52,123.49,2.98649067]
[1766514712925,0.72,123.52,123.48,2.98649067]
[1766514713508,0.72,123.51,123.47,11.08554977]
[1766514716226,0.72,123.51,123.47,8.0990591]
[1766514716446,0.72,123.51,123.47,11.08554977]
[1766514716924,0.72,123.5,123.46,11.08598279]
[1766514718014,0.72,123.5,123.47,2.98649067]
[1766514718221,0.72,123.5,123.48,2.98649067]
[1766514720931,0.72,123.53,123.49,2.98649067]
[1766514721127,0.72,123.53,123.5,2.98649067]
[1766514722618,0.72,123.54,123.51,2.98649067]
[1766514722921,0.72,123.54,123.49,8.09768618]
[1766514723110,0.72,123.53,123.48,8.0980975]
[1766514723302,0.72,123.53,123.49,2.98649067]
[1766514724704,0.72,123.51,123.49,2.98649067]
[1766514725110,0.72,123.52,123.5,2.98649067]
[1766514725533,0.72,123.52,123.49,2.98649067]
[1766514726137,0.72,123.52,123.5,2.98649067]
[1766514727138,0.72,123.52,123.47,28.34696687]
[1766514727354,0.72,123.52,123.5,2.98649067]
[1766514727526,0.72,123.52,123.49,2.98649067]
[1766514728135,0.72,123.52,123.49,11.08430746]
[1766514729835,0.72,123.52,123.5,2.98649067]
[1766514731711,0.68,123.51,123.47,8.09880243]
[1766514731917,0.68,123.51,123.47,2.98649067]
[1766514732227,2.98649067,123.51,123.46,17.76649067]
[1766514732434,0.68,123.5,123.46,17.76649067]
[1766514732935,0.68,123.5,123.46,25.86624317]
[1766514733414,0.68,123.5,123.46,11.08624317]
[1766514734538,0.68,123.5,123.47,2.98649067]
[1766514736439,8.09698343,123.51,123.48,2.98649067]
[1766514736440,0.68,123.51,123.48,2.98649067]
[1766514736641,29.35422797,123.57,123.48,2.98649067]
[1766514736642,4.22423743,123.6,123.51,0.68]
[1766514736937,4.22423743,123.6,123.56,2.98649067]
[1766514736938,14.78,123.6,123.56,2.98649067]
[1766514737146,14.78,123.6,123.56,11.75943131]
[1766514737315,8.28943771,123.62,123.58,2.98649067]
[1766514737514,0.2,123.62,123.59,2.98649067]
[1766514737719,0.2,123.62,123.6,2.98649067]
[1766514737923,0.2,123.62,123.59,14.10416363]
[1766514738129,11.27584111,123.62,123.57,2.98649067]
[1766514738326,11.27584111,123.62,123.56,11.77943131]
[1766514738526,8.28935044,123.62,123.56,11.77943131]
[1766514738724,0.68,123.6,123.56,0.7]
[1766514739236,8.77174402,123.59,123.53,8.09481299]
[1766514739413,0.68,123.58,123.54,3.68649067]
[1766514740046,0.68,123.57,123.54,0.7]
[1766514740211,0.68,123.56,123.52,0.7]
[1766514741341,0.68,123.56,123.52,11.78231222]
[1766514742136,11.07957614,123.57,123.52,11.08231222]
[1766514742344,0.68,123.57,123.53,3.68649067]
[1766514742736,11.07861915,123.58,123.52,8.09582155]
[1766514742737,8.77212848,123.58,123.55,0.7]